[Event "56th Biel Festival Rapid 2023"]
[Site "Biel"]
[Date "2024.04.13"]
[Round "2.21"]
[White "Rohrer, Christophe"]
[Black "Berger, Stefan"]
[Result "1-0"]
[WhiteElo "2312"]
[BlackElo "1881"]
[PlyCount "73"]
[EventDate "2023.07.16"]
[EventType "swiss"]
[EventCountry "SUI"]
[TimeControl "900+5"]

1. e4 {[%emt 0:00:04]} c6 {[%emt 0:00:08]} 2. d4 {[%emt 0:00:02]} d5 {[%emt 0:00:11]} 3. e5 {[%emt 0:00:03]} c5 {[%emt 0:00:31]} 4. dxc5 {[%emt 0:00:03]} e6 {[%emt 0:00:05]} 5. a3 {[%emt 0:00:04]} Bxc5 {[%emt 0:00:03]} 6. b4 {[%emt 0:00:03]} Bb6 {[%emt 0:00:25]} 7. Nf3 {[%emt 0:00:06]} Ne7 {[%emt 0:00:03]} 8. Bb2 {[%emt 0:00:10]} Nbc6 {[%emt 0:00:13]} 9. Bd3 {[%emt 0:00:08]} Ng6 {[%emt 0:00:47]} 10. O-O {[%emt 0:00:11]} a6 {[%emt 0:00:16]} 11. Nbd2 {[%emt 0:00:22]} Nf4 {[%emt 0:00:03]} 12. Nb3 {[%emt 0:00:21]} Nxd3 {[%emt 0:00:04]} 13. Qxd3 {[%emt 0:00:14]} O-O {[%emt 0:00:04]} 14. c4 {[%emt 0:00:40]} dxc4 {[%emt 0:00:32]} 15. Qxc4 {[%emt 0:00:02]} Qe7 {[%emt 0:00:12]} 16. Rac1 {[%emt 0:00:41]} Bd7 {[%emt 0:00:02]} 17. Rfd1 {[%emt 0:00:10]} Rac8 {[%emt 0:00:02]} 18. Qe4 {[%emt 0:00:10]} Rfd8 {[%emt 0:00:35]} 19. h4 {[%emt 0:00:16]} Be8 {[%emt 0:01:17]} 20. Ng5 {[%emt 0:00:28]} g6 {[%emt 0:00:02]} 21. Qf4 {[%emt 0:00:09]} Rxd1+ {[%emt 0:00:37]} 22. Rxd1 {[%emt 0:00:01]} Rd8 {[%emt 0:00:06]} 23. Re1 {[%emt 0:00:56]} Rd3 {[%emt 0:00:13]} 24. Nc5 {[%emt 0:00:26]} Bxc5 {[%emt 0:01:34]} 25. bxc5 {[%emt 0:00:01]} Qxc5 {[%emt 0:01:01]} 26. Ne4 {[%emt 0:00:18]} Qf8 {[%emt 0:01:30]} 27. Nf6+ {[%emt 0:00:09]} Kh8 {[%emt 0:00:26]} 28. Qc4 {[%emt 0:00:23]} Rd8 {[%emt 0:00:50]} 29. a4 {[%emt 0:01:43]} Qb4 {[%emt 0:00:37]} 30. Qxb4 {[%emt 0:00:11]} Nxb4 {[%emt 0:00:02]} 31. a5 {[%emt 0:00:50]} Bc6 {[%emt 0:00:14]} 32. h5 {[%emt 0:00:22]} Kg7 {[%emt 0:00:21]} 33. Re3 {[%emt 0:00:40]} Rd3 {[%emt 0:00:45]} 34. Rxd3 {[%emt 0:00:51]} Nxd3 {[%emt 0:00:01]} 35. Bd4 {[%emt 0:00:13]} Nf4 {[%emt 0:00:04]} 36. h6+ {[%emt 0:02:11]} Kh8 {[%emt 0:01:36]} 37. Bc5 {[%emt 0:00:13]} 1-0

[Event "56th Biel Festival Rapid 2023"]
[Site "Biel"]
[Date "2024.04.13"]
[Round "2.22"]
[White "Stebahne, Olaf"]
[Black "Ermeni, Avni"]
[Result "0-1"]
[WhiteElo "1913"]
[BlackElo "2138"]
[PlyCount "38"]
[EventDate "2023.07.16"]
[EventType "swiss"]
[EventCountry "SUI"]
[TimeControl "900+5"]

1. c4 {[%emt 0:00:05]} Nf6 {[%emt 0:00:02]} 2. Nc3 {[%emt 0:00:08]} c5 {[%emt 0:00:05]} 3. d3 {[%emt 0:00:07]} e6 {[%emt 0:00:04]} 4. g3 {[%emt 0:00:03]} d5 {[%emt 0:00:26]} 5. cxd5 {[%emt 0:00:23]} Nxd5 {[%emt 0:00:03]} 6. Bg2 {[%emt 0:00:05]} Nc6 {[%emt 0:00:01]} 7. f4 {[%emt 0:00:38]} Be7 {[%emt 0:00:04]} 8. Nf3 {[%emt 0:00:03]} O-O {[%emt 0:00:02]} 9. O-O {[%emt 0:00:15]} b6 {[%emt 0:00:07]} 10. Nxd5 {[%emt 0:01:23]} exd5 {[%emt 0:00:02]} 11. e4 {[%emt 0:00:26]} dxe4 {[%emt 0:00:16]} 12. dxe4 {[%emt 0:00:02]} Ba6 {[%emt 0:00:01]} 13. Re1 {[%emt 0:00:48]} Nb4 {[%emt 0:00:16]} 14. Ne5 {[%emt 0:00:50]} Bf6 {[%emt 0:01:03]} 15. a3 {[%emt 0:00:28]} Qxd1 {[%emt 0:01:38]} 16. Rxd1 {[%emt 0:00:02]} Nc2 {[%emt 0:00:01]} 17. Nd7 {[%emt 0:01:37]} Bd4+ {[%emt 0:00:16]} 18. Kh1 {[%emt 0:00:32]} Nxa1 {[%emt 0:00:09]} 19. Nxf8 {[%emt 0:00:02]} Rxf8 {[%emt 0:00:01]} 0-1

[Event "56th Biel Festival Rapid 2023"]
[Site "Biel"]
[Date "2024.04.13"]
[Round "2.23"]
[White "Voland, Robin"]
[Black "Erne, Raphael"]
[Result "*"]
[WhiteElo "1930"]
[BlackElo "2077"]
[PlyCount "63"]
[EventDate "2023.07.16"]
[EventType "swiss"]
[EventCountry "SUI"]
[TimeControl "900+5"]

1. e4 {[%emt 0:00:03]} c6 {[%emt 0:00:03]} 2. Nf3 {[%emt 0:00:01]} d5 {[%emt 0:00:02]} 3. Nc3 {[%emt 0:00:01]} Nf6 {[%emt 0:00:02]} 4. e5 {[%emt 0:00:09]} Ne4 {[%emt 0:00:01]} 5. d4 {[%emt 0:00:02]} Nxc3 {[%emt 0:00:02]} 6. bxc3 {[%emt 0:00:01]} c5 {[%emt 0:00:02]} 7. Bb5+ {[%emt 0:00:11]} Bd7 {[%emt 0:00:05]} 8. Rb1 {[%emt 0:00:08]} e6 {[%emt 0:01:30]} 9. O-O {[%emt 0:00:17]} Be7 {[%emt 0:00:42]} 10. c4 {[%emt 0:00:28]} dxc4 {[%emt 0:01:14]} 11. dxc5 {[%emt 0:00:54]} Qc7 {[%emt 0:04:12]} 12. Be3 {[%emt 0:01:20]} O-O {[%emt 0:01:22]} 13. Bxc4 {[%emt 0:00:15]} Bc6 {[%emt 0:01:12]} 14. Nd4 {[%emt 0:02:07]} Nd7 {[%emt 0:01:38]} 15. Nxc6 {[%emt 0:03:54]} bxc6 {[%emt 0:00:03]} 16. f4 {[%emt 0:00:59]} Nxc5 {[%emt 0:00:33]} 17. Qf3 {[%emt 0:00:12]} Rad8 {[%emt 0:00:38]} 18. h4 {[%emt 0:00:13]} Na4 {[%emt 0:00:59]} 19. h5 {[%emt 0:00:27]} Nc3 {[%emt 0:00:32]} 20. Rb3 {[%emt 0:00:25]} Nd5 {[%emt 0:00:14]} 21. Bf2 {[%emt 0:00:41]} Nb6 {[%emt 0:00:32]} 22. Bd3 {[%emt 0:00:07]} c5 {[%emt 0:00:09]} 23. Qe4 {[%emt 0:01:23]} g6 {[%emt 0:00:00]} 24. Rfb1 {[%emt 0:00:23]} Rd7 {[%emt 0:00:36]} 25. Bb5 {[%emt 0:00:19]} Rd5 {[%emt 0:00:11]} 26. a4 {[%emt 0:00:22]} Rfd8 {[%emt 0:00:02]} 27. a5 {[%emt 0:00:03]} Rd1+ {[%emt 0:00:13]} 28. Kh2 {[%emt 0:00:32]} Rxb1 {[%emt 0:00:01]} 29. axb6 {[%emt 0:00:09]} Qxb6 {[%emt 0:00:18]} 30. Rxb1 {[%emt 0:00:07]} a6 {[%emt 0:00:00]} 31. Qc6 {[%emt 0:00:05]} Bf8 {[%emt 0:00:05]} 32. Qd7 {[%emt 0:00:27]} *

[Event "56th Biel Festival Rapid 2023"]
[Site "Biel"]
[Date "2024.04.13"]
[Round "2.25"]
[White "Rait Albert"]
[Black "Ouellet, Maili-Jade"]
[Result "0-1"]
[WhiteElo "1899"]
[BlackElo "2201"]
[PlyCount "128"]
[EventDate "2023.07.16"]
[EventType "swiss"]
[EventCountry "SUI"]
[TimeControl "900+5"]

1. b4 {[%emt 0:00:03]} e5 {[%emt 0:00:04]} 2. Bb2 {[%emt 0:00:02]} d6 {[%emt 0:00:02]} 3. c4 {[%emt 0:00:02]} f5 {[%emt 0:00:03]} 4. e3 {[%emt 0:00:04]} Nf6 {[%emt 0:00:03]} 5. Nc3 {[%emt 0:00:03]} g6 {[%emt 0:00:10]} 6. Be2 {[%emt 0:00:28]} Bg7 {[%emt 0:00:05]} 7. d4 {[%emt 0:00:05]} e4 {[%emt 0:00:22]} 8. Nh3 {[%emt 0:00:30]} O-O {[%emt 0:00:07]} 9. Qb3 {[%emt 0:00:45]} a5 {[%emt 0:00:52]} 10. b5 {[%emt 0:00:22]} Kh8 {[%emt 0:00:54]} 11. Nf4 {[%emt 0:01:07]} g5 {[%emt 0:01:05]} 12. Nfd5 {[%emt 0:01:38]} Nbd7 {[%emt 0:01:03]} 13. Nxf6 {[%emt 0:00:35]} Nxf6 {[%emt 0:00:32]} 14. h4 {[%emt 0:00:46]} g4 {[%emt 0:01:05]} 15. g3 {[%emt 0:00:11]} Be6 {[%emt 0:00:40]} 16. a4 {[%emt 0:00:57]} c6 {[%emt 0:00:15]} 17. Qa3 {[%emt 0:01:01]} Rc8 {[%emt 0:00:32]} 18. c5 {[%emt 0:00:19]} dxc5 {[%emt 0:00:54]} 19. dxc5 {[%emt 0:00:25]} Qe7 {[%emt 0:00:23]} 20. Rc1 {[%emt 0:00:36]} Nd7 {[%emt 0:00:43]} 21. Nb1 {[%emt 0:00:40]} cxb5 {[%emt 0:00:23]} 22. Bxg7+ {[%emt 0:00:17]} Kxg7 {[%emt 0:00:06]} 23. Qb2+ {[%emt 0:00:11]} Kg8 {[%emt 0:00:10]} 24. Qxb5 {[%emt 0:00:05]} Nxc5 {[%emt 0:00:20]} 25. O-O {[%emt 0:00:18]} Nb3 {[%emt 0:00:15]} 26. Rxc8 {[%emt 0:01:13]} Rxc8 {[%emt 0:00:01]} 27. Rd1 {[%emt 0:00:23]} Qc7 {[%emt 0:01:54]} 28. Na3 {[%emt 0:00:54]} Qc5 {[%emt 0:01:09]} 29. Qxc5 {[%emt 0:00:54]} Nxc5 {[%emt 0:00:01]} 30. Bb5 {[%emt 0:00:17]} Kf8 {[%emt 0:00:16]} 31. Nc2 {[%emt 0:00:40]} Bb3 {[%emt 0:00:50]} 32. Rd2 {[%emt 0:00:06]} Nd3 {[%emt 0:00:26]} 33. Nd4 {[%emt 0:00:01]} Rc1+ {[%emt 0:00:09]} 34. Kh2 {[%emt 0:00:12]} Bd5 {[%emt 0:00:08]} 35. Nxf5 {[%emt 0:00:15]} Ne5 {[%emt 0:00:19]} 36. Nd4 {[%emt 0:00:19]} Ke7 {[%emt 0:00:14]} 37. Be2 {[%emt 0:00:10]} Kf6 {[%emt 0:00:41]} 38. Nc2 {[%emt 0:00:57]} Bc4 {[%emt 0:00:13]} 39. Nd4 {[%emt 0:00:08]} Bd3 {[%emt 0:00:24]} 40. Rb2 {[%emt 0:00:13]} Rc7 {[%emt 0:00:22]} 41. Rb6+ {[%emt 0:00:04]} Kf7 {[%emt 0:00:03]} 42. Rb2 {[%emt 0:00:08]} Bxe2 {[%emt 0:00:08]} 43. Rxe2 {[%emt 0:00:04]} Ke7 {[%emt 0:00:06]} 44. Kg2 {[%emt 0:00:02]} Kd7 {[%emt 0:00:02]} 45. Rb2 {[%emt 0:00:04]} Nd3 {[%emt 0:00:06]} 46. Rb5 {[%emt 0:00:08]} Rc1 {[%emt 0:00:08]} 47. Rd5+ {[%emt 0:00:04]} Kc7 {[%emt 0:00:08]} 48. Rxa5 {[%emt 0:00:06]} Ne1+ {[%emt 0:00:00]} 49. Kh2 {[%emt 0:00:01]} Nd3 {[%emt 0:00:02]} 50. Kg2 {[%emt 0:00:05]} Ra1 {[%emt 0:00:02]} 51. Rh5 {[%emt 0:00:00]} Ra2 {[%emt 0:00:04]} 52. Rxh7+ {[%emt 0:00:00]} Kb6 {[%emt 0:00:04]} 53. Rf7 {[%emt 0:00:02]} Ne1+ {[%emt 0:00:11]} 54. Kh2 {[%emt 0:00:02]} Nd3 {[%emt 0:00:02]} 55. h5 {[%emt 0:00:04]} Nxf2 {[%emt 0:00:04]} 56. Kg2 {[%emt 0:00:28]} Nd1+ {[%emt 0:00:08]} 57. Kf1 {[%emt 0:00:02]} Nxe3+ {[%emt 0:00:01]} 58. Ke1 {[%emt 0:00:05]} Rh2 {[%emt 0:00:05]} 59. Rf6+ {[%emt 0:00:00]} Kc5 {[%emt 0:00:01]} 60. Ne6+ {[%emt 0:00:01]} Kc4 {[%emt 0:00:03]} 61. Nf4 {[%emt 0:00:02]} Nc2+ {[%emt 0:00:08]} 62. Kd1 {[%emt 0:00:03]} Nd4 {[%emt 0:00:04]} 63. h6 {[%emt 0:00:05]} e3 {[%emt 0:00:08]} 64. Rf7 {[%emt 0:00:17]} Rh1# {[%emt 0:00:00]} 0-1

[Event "56th Biel Festival Rapid 2023"]
[Site "Biel"]
[Date "2024.04.13"]
[Round "2.26"]
[White "Materia, Matteo"]
[Black "Kocharin, Timur"]
[Result "*"]
[WhiteElo "1780"]
[BlackElo "2225"]
[PlyCount "79"]
[EventDate "2023.07.16"]
[EventType "swiss"]
[EventCountry "SUI"]
[TimeControl "900+5"]

1. e4 {[%emt 0:00:04]} c6 {[%emt 0:00:04]} 2. d4 {[%emt 0:00:04]} d5 {[%emt 0:00:01]} 3. exd5 {[%emt 0:00:02]} cxd5 {[%emt 0:00:03]} 4. c4 {[%emt 0:00:03]} Nf6 {[%emt 0:00:02]} 5. Nc3 {[%emt 0:00:04]} Nc6 {[%emt 0:00:05]} 6. Nf3 {[%emt 0:00:20]} e6 {[%emt 0:00:18]} 7. Be3 {[%emt 0:00:56]} Be7 {[%emt 0:00:32]} 8. Be2 {[%emt 0:01:18]} O-O {[%emt 0:00:08]} 9. O-O {[%emt 0:00:02]} dxc4 {[%emt 0:00:04]} 10. Bxc4 {[%emt 0:00:05]} Nb4 {[%emt 0:00:09]} 11. Qb3 {[%emt 0:01:36]} b6 {[%emt 0:02:00]} 12. a3 {[%emt 0:03:24]} Nc6 {[%emt 0:00:18]} 13. Qd1 {[%emt 0:01:00]} Na5 {[%emt 0:00:12]} 14. Ba2 {[%emt 0:00:04]} Ba6 {[%emt 0:00:10]} 15. Re1 {[%emt 0:00:22]} Bc4 {[%emt 0:00:12]} 16. Bxc4 {[%emt 0:02:45]} Nxc4 {[%emt 0:00:02]} 17. Ne5 {[%emt 0:00:50]} Nxe3 {[%emt 0:00:17]} 18. Rxe3 {[%emt 0:00:19]} Rc8 {[%emt 0:00:12]} 19. Rd3 {[%emt 0:00:31]} Nd5 {[%emt 0:00:08]} 20. Qf3 {[%emt 0:00:46]} Nxc3 {[%emt 0:00:36]} 21. bxc3 {[%emt 0:00:06]} b5 {[%emt 0:00:08]} 22. a4 {[%emt 0:01:34]} bxa4 {[%emt 0:00:31]} 23. Nc6 {[%emt 0:00:27]} Qc7 {[%emt 0:00:08]} 24. Nxe7+ {[%emt 0:00:02]} Qxe7 {[%emt 0:00:02]} 25. Rxa4 {[%emt 0:00:04]} Rc7 {[%emt 0:00:05]} 26. g3 {[%emt 0:00:12]} Rfc8 {[%emt 0:00:00]} 27. Ra1 {[%emt 0:00:11]} Qd6 {[%emt 0:00:06]} 28. h4 {[%emt 0:00:07]} h6 {[%emt 0:00:04]} 29. Rad1 {[%emt 0:00:02]} a5 {[%emt 0:00:11]} 30. Ra1 {[%emt 0:00:07]} Ra7 {[%emt 0:00:10]} 31. Qe3 {[%emt 0:00:06]} Qd5 {[%emt 0:00:04]} 32. Qe5 {[%emt 0:00:04]} Qc4 {[%emt 0:00:08]} 33. Re3 {[%emt 0:00:03]} a4 {[%emt 0:00:02]} 34. f4 {[%emt 0:00:01]} a3 {[%emt 0:00:06]} 35. f5 {[%emt 0:00:05]} exf5 {[%emt 0:00:05]} 36. Qxf5 {[%emt 0:00:02]} a2 {[%emt 0:00:08]} 37. Qc2 {[%emt 0:00:15]} Qxd4 {[%emt 0:00:06]} 38. cxd4 {[%emt 0:00:03]} Rxc2 {[%emt 0:00:01]} 39. Ree1 {[%emt 0:00:05]} Rd2 {[%emt 0:00:02]} 40. d5 {[%emt 0:00:14]} *

[Event "56th Biel Festival Rapid 2023"]
[Site "Biel"]
[Date "2024.04.13"]
[Round "2.27"]
[White "Kreienbuehl, Andreas"]
[Black "Begdullayev, Tamerlan"]
[Result "*"]
[WhiteElo "2138"]
[BlackElo "1783"]
[PlyCount "30"]
[EventDate "2023.07.16"]
[EventType "swiss"]
[EventCountry "SUI"]
[TimeControl "900+5"]

1. d4 {[%emt 0:00:01]} d5 {[%emt 0:00:04]} 2. c4 {[%emt 0:00:03]} c6 {[%emt 0:00:02]} 3. Nf3 {[%emt 0:00:07]} Nf6 {[%emt 0:00:03]} 4. e3 {[%emt 0:00:06]} a6 {[%emt 0:00:03]} 5. b3 {[%emt 0:00:34]} b5 {[%emt 0:00:20]} 6. Bd3 {[%emt 0:00:58]} Bg4 {[%emt 0:00:27]} 7. Nbd2 {[%emt 0:00:21]} e6 {[%emt 0:00:47]} 8. O-O {[%emt 0:00:20]} Bd6 {[%emt 0:00:24]} 9. Qc2 {[%emt 0:00:45]} Nbd7 {[%emt 0:00:44]} 10. e4 {[%emt 0:00:08]} dxe4 {[%emt 0:01:11]} 11. Bxe4 {[%emt 0:01:29]} Rc8 {[%emt 0:00:46]} 12. h3 {[%emt 0:02:18]} Bh5 {[%emt 0:01:02]} 13. Re1 {[%emt 0:00:44]} O-O {[%emt 0:00:39]} 14. Bd3 {[%emt 0:01:20]} Re8 {[%emt 0:01:02]} 15. Ne5 {[%emt 0:00:37]} h6 {[%emt 0:01:06]} *

[Event "56th Biel Festival Rapid 2023"]
[Site "Biel"]
[Date "2024.04.13"]
[Round "2.29"]
[White "Dergatschova, Anna"]
[Black "Tkhoruk, Roman"]
[Result "1/2-1/2"]
[WhiteElo "2120"]
[BlackElo "1803"]
[PlyCount "76"]
[EventDate "2023.07.16"]
[EventType "swiss"]
[EventCountry "SUI"]
[TimeControl "900+5"]

1. e4 {[%emt 0:00:04]} c6 {[%emt 0:00:00]} 2. Nf3 {[%emt 0:00:08]} d5 {[%emt 0:00:01]} 3. exd5 {[%emt 0:00:08]} cxd5 {[%emt 0:00:09]} 4. d4 {[%emt 0:00:08]} Nc6 {[%emt 0:00:02]} 5. c3 {[%emt 0:00:09]} Bf5 {[%emt 0:00:03]} 6. Bb5 {[%emt 0:00:11]} a6 {[%emt 0:00:07]} 7. Bxc6+ {[%emt 0:00:15]} bxc6 {[%emt 0:00:01]} 8. Qa4 {[%emt 0:00:12]} Qb6 {[%emt 0:00:20]} 9. Nbd2 {[%emt 0:00:17]} Bd3 {[%emt 0:00:18]} 10. Qb3 {[%emt 0:01:26]} Qb5 {[%emt 0:01:03]} 11. a4 {[%emt 0:00:25]} Qxb3 {[%emt 0:00:16]} 12. Nxb3 {[%emt 0:00:03]} e6 {[%emt 0:00:01]} 13. Ne5 {[%emt 0:00:22]} Bc2 {[%emt 0:00:15]} 14. Na5 {[%emt 0:00:39]} c5 {[%emt 0:00:05]} 15. Kd2 {[%emt 0:00:23]} Bg6 {[%emt 0:00:18]} 16. h4 {[%emt 0:00:30]} cxd4 {[%emt 0:01:52]} 17. h5 {[%emt 0:00:06]} dxc3+ {[%emt 0:00:02]} 18. bxc3 {[%emt 0:00:01]} Bf5 {[%emt 0:00:23]} 19. g4 {[%emt 0:00:06]} Bd6 {[%emt 0:00:09]} 20. Nac6 {[%emt 0:00:02]} Bxe5 {[%emt 0:00:27]} 21. Nxe5 {[%emt 0:00:02]} f6 {[%emt 0:00:02]} 22. gxf5 {[%emt 0:00:26]} fxe5 {[%emt 0:00:02]} 23. Re1 {[%emt 0:00:08]} e4 {[%emt 0:00:35]} 24. fxe6 {[%emt 0:00:02]} Ke7 {[%emt 0:00:15]} 25. f3 {[%emt 0:00:02]} Nf6 {[%emt 0:00:06]} 26. c4 {[%emt 0:00:14]} Kxe6 {[%emt 0:00:36]} 27. Bb2 {[%emt 0:00:06]} Rhd8 {[%emt 0:00:56]} 28. Bxf6 {[%emt 0:00:07]} gxf6 {[%emt 0:00:12]} 29. cxd5+ {[%emt 0:00:05]} Rxd5+ {[%emt 0:00:04]} 30. Kc3 {[%emt 0:00:42]} Rc8+ {[%emt 0:00:04]} 31. Kb4 {[%emt 0:00:04]} a5+ {[%emt 0:00:07]} 32. Kb3 {[%emt 0:00:07]} Rd3+ {[%emt 0:00:04]} 33. Kb2 {[%emt 0:00:01]} Rd4 {[%emt 0:00:30]} 34. fxe4 {[%emt 0:00:38]} Rb4+ {[%emt 0:00:04]} 35. Ka3 {[%emt 0:00:06]} Rc3+ {[%emt 0:00:01]} 36. Ka2 {[%emt 0:00:02]} Rc2+ {[%emt 0:00:36]} 37. Ka3 {[%emt 0:00:04]} Rc3+ {[%emt 0:00:13]} 38. Ka2 {[%emt 0:00:01]} Rc2+ {[%emt 0:00:01]} 1/2-1/2

[Event "56th Biel Festival Rapid 2023"]
[Site "Biel"]
[Date "2024.04.13"]
[Round "2.31"]
[White "Olarte, Stefan"]
[Black "Prieb, Robert"]
[Result "*"]
[WhiteElo "1879"]
[BlackElo "2060"]
[PlyCount "95"]
[EventDate "2023.07.16"]
[EventType "swiss"]
[EventCountry "SUI"]
[TimeControl "900+5"]

1. Nf3 {[%emt 0:00:04]} Nf6 {[%emt 0:00:02]} 2. g3 {[%emt 0:00:08]} g6 {[%emt 0:00:03]} 3. Bg2 {[%emt 0:00:02]} Bg7 {[%emt 0:00:03]} 4. O-O {[%emt 0:00:03]} O-O {[%emt 0:00:03]} 5. Re1 {[%emt 0:00:02]} d5 {[%emt 0:00:03]} 6. c4 {[%emt 0:00:02]} c6 {[%emt 0:00:03]} 7. Qc2 {[%emt 0:00:21]} Bf5 {[%emt 0:00:06]} 8. d3 {[%emt 0:00:01]} Nbd7 {[%emt 0:00:30]} 9. Nd4 {[%emt 0:00:30]} dxc4 {[%emt 0:00:31]} 10. Nxf5 {[%emt 0:00:23]} cxd3 {[%emt 0:00:38]} 11. Qxd3 {[%emt 0:00:11]} gxf5 {[%emt 0:00:04]} 12. Qxf5 {[%emt 0:00:05]} e6 {[%emt 0:00:02]} 13. Qc2 {[%emt 0:00:39]} Nd5 {[%emt 0:00:11]} 14. Bd2 {[%emt 0:00:39]} Qb6 {[%emt 0:01:00]} 15. Nc3 {[%emt 0:00:40]} Ne5 {[%emt 0:00:13]} 16. Na4 {[%emt 0:00:27]} Qb5 {[%emt 0:00:14]} 17. Rac1 {[%emt 0:00:45]} Nb4 {[%emt 0:00:34]} 18. Qb3 {[%emt 0:00:32]} a5 {[%emt 0:00:09]} 19. Rc5 {[%emt 0:00:25]} Qa6 {[%emt 0:00:02]} 20. Bc3 {[%emt 0:00:26]} Ng6 {[%emt 0:01:26]} 21. Rh5 {[%emt 0:00:47]} Nd5 {[%emt 0:01:58]} 22. Nc5 {[%emt 0:01:43]} Qa7 {[%emt 0:00:18]} 23. Bxg7 {[%emt 0:00:14]} Kxg7 {[%emt 0:00:02]} 24. Bxd5 {[%emt 0:01:12]} Qxc5 {[%emt 0:00:37]} 25. Bf3 {[%emt 0:00:02]} Qb4 {[%emt 0:00:02]} 26. Qc3+ {[%emt 0:00:22]} Qxc3 {[%emt 0:00:05]} 27. bxc3 {[%emt 0:00:01]} f5 {[%emt 0:01:31]} 28. Rb1 {[%emt 0:00:34]} Rab8 {[%emt 0:00:21]} 29. e4 {[%emt 0:00:16]} Ne5 {[%emt 0:00:29]} 30. Be2 {[%emt 0:00:01]} b5 {[%emt 0:00:18]} 31. Rd1 {[%emt 0:01:34]} Rbd8 {[%emt 0:02:52]} 32. Rxd8 {[%emt 0:00:12]} Rxd8 {[%emt 0:00:02]} 33. exf5 {[%emt 0:00:01]} Rd2 {[%emt 0:00:46]} 34. Kf1 {[%emt 0:00:02]} exf5 {[%emt 0:00:16]} 35. Rxf5 {[%emt 0:00:15]} Nf7 {[%emt 0:00:29]} 36. a4 {[%emt 0:00:11]} Nd6 {[%emt 0:00:10]} 37. Rc5 {[%emt 0:00:42]} b4 {[%emt 0:00:23]} 38. cxb4 {[%emt 0:00:27]} axb4 {[%emt 0:00:03]} 39. Rxc6 {[%emt 0:00:02]} Ne4 {[%emt 0:00:28]} 40. Rb6 {[%emt 0:00:46]} Nc3 {[%emt 0:00:16]} 41. Bc4 {[%emt 0:00:22]} Rd1+ {[%emt 0:00:22]} 42. Kg2 {[%emt 0:00:02]} Rb1 {[%emt 0:00:02]} 43. a5 {[%emt 0:00:05]} Na4 {[%emt 0:00:19]} 44. Rb7+ {[%emt 0:00:02]} Kf6 {[%emt 0:00:03]} 45. a6 {[%emt 0:00:09]} Nc5 {[%emt 0:00:03]} 46. Rb6+ {[%emt 0:00:02]} Ke7 {[%emt 0:00:06]} 47. a7 {[%emt 0:00:01]} Ra1 {[%emt 0:00:02]} 48. Ba6 {[%emt 0:00:04]} *

[Event "56th Biel Festival Rapid 2023"]
[Site "Biel"]
[Date "2024.04.13"]
[Round "2.32"]
[White "Materia, Mario"]
[Black "Creux François"]
[Result "*"]
[WhiteElo "1196"]
[BlackElo "1753"]
[PlyCount "130"]
[EventDate "2023.07.16"]
[EventType "swiss"]
[EventCountry "SUI"]
[TimeControl "900+5"]

1. d4 {[%emt 0:00:02]} d5 {[%emt 0:00:02]} 2. c4 {[%emt 0:00:02]} c6 {[%emt 0:00:01]} 3. Nc3 {[%emt 0:00:02]} Nf6 {[%emt 0:00:01]} 4. Nf3 {[%emt 0:00:07]} e6 {[%emt 0:00:02]} 5. Bf4 {[%emt 0:00:12]} Be7 {[%emt 0:00:08]} 6. e3 {[%emt 0:00:23]} O-O {[%emt 0:00:01]} 7. cxd5 {[%emt 0:00:05]} cxd5 {[%emt 0:00:02]} 8. Bd3 {[%emt 0:00:10]} h6 {[%emt 0:00:01]} 9. O-O {[%emt 0:00:18]} Nh5 {[%emt 0:00:04]} 10. Bg3 {[%emt 0:00:11]} a6 {[%emt 0:00:05]} 11. Qc2 {[%emt 0:00:17]} Nc6 {[%emt 0:00:06]} 12. a3 {[%emt 0:00:07]} Nxg3 {[%emt 0:00:01]} 13. hxg3 {[%emt 0:00:14]} Bf6 {[%emt 0:00:02]} 14. Rfd1 {[%emt 0:00:16]} Qc7 {[%emt 0:00:21]} 15. Rac1 {[%emt 0:00:07]} Qe7 {[%emt 0:00:04]} 16. b4 {[%emt 0:00:25]} Bd7 {[%emt 0:01:36]} 17. Na4 {[%emt 0:00:14]} Rab8 {[%emt 0:00:40]} 18. Nc5 {[%emt 0:01:04]} Be8 {[%emt 0:00:11]} 19. Qb3 {[%emt 0:00:49]} Qd6 {[%emt 0:01:11]} 20. b5 {[%emt 0:00:38]} axb5 {[%emt 0:00:29]} 21. Bxb5 {[%emt 0:00:20]} Na5 {[%emt 0:00:07]} 22. Qb4 {[%emt 0:00:10]} b6 {[%emt 0:00:32]} 23. Na6 {[%emt 0:00:22]} Qxb4 {[%emt 0:00:20]} 24. axb4 {[%emt 0:00:09]} Bxb5 {[%emt 0:00:01]} 25. Nxb8 {[%emt 0:00:21]} Nc4 {[%emt 0:00:08]} 26. Nd2 {[%emt 0:00:21]} Rxb8 {[%emt 0:01:11]} 27. Nxc4 {[%emt 0:00:04]} Bxc4 {[%emt 0:00:04]} 28. e4 {[%emt 0:00:06]} Be7 {[%emt 0:00:19]} 29. exd5 {[%emt 0:00:16]} exd5 {[%emt 0:00:15]} 30. Rb1 {[%emt 0:00:11]} Ra8 {[%emt 0:00:09]} 31. Re1 {[%emt 0:00:15]} Kf8 {[%emt 0:00:51]} 32. Rb2 {[%emt 0:00:02]} Ra4 {[%emt 0:00:07]} 33. Rbb1 {[%emt 0:00:11]} b5 {[%emt 0:00:18]} 34. Re3 {[%emt 0:00:11]} Bxb4 {[%emt 0:00:19]} 35. Kh2 {[%emt 0:00:07]} Ra3 {[%emt 0:01:05]} 36. Rxb4 {[%emt 0:00:07]} Rxe3 {[%emt 0:00:36]} 37. fxe3 {[%emt 0:00:15]} Ke7 {[%emt 0:00:01]} 38. Kh3 {[%emt 0:00:04]} Kf6 {[%emt 0:00:01]} 39. Kg4 {[%emt 0:00:01]} Ke6 {[%emt 0:00:02]} 40. Kf3 {[%emt 0:00:11]} f5 {[%emt 0:00:04]} 41. g4 {[%emt 0:00:11]} g6 {[%emt 0:00:01]} 42. gxf5+ {[%emt 0:00:03]} gxf5 {[%emt 0:00:03]} 43. g4 {[%emt 0:00:03]} fxg4+ {[%emt 0:00:01]} 44. Kxg4 {[%emt 0:00:13]} Be2+ {[%emt 0:00:01]} 45. Kf4 {[%emt 0:00:09]} Kd6 {[%emt 0:00:06]} 46. Rb1 {[%emt 0:00:23]} Kc6 {[%emt 0:00:32]} 47. Ke5 {[%emt 0:00:18]} Bf3 {[%emt 0:00:13]} 48. Kf4 {[%emt 0:00:12]} Be4 {[%emt 0:00:21]} 49. Kg4 {[%emt 0:00:05]} Bxb1 {[%emt 0:00:12]} 50. Kf3 {[%emt 0:00:02]} Be4+ {[%emt 0:00:16]} 51. Ke2 {[%emt 0:00:03]} b4 {[%emt 0:00:01]} 52. Kd2 {[%emt 0:00:03]} h5 {[%emt 0:00:01]} 53. Kc1 {[%emt 0:00:02]} h4 {[%emt 0:00:04]} 54. Kb2 {[%emt 0:00:02]} Kb5 {[%emt 0:00:03]} 55. Kc1 {[%emt 0:00:01]} Kc4 {[%emt 0:00:01]} 56. Kd2 {[%emt 0:00:05]} h3 {[%emt 0:00:01]} 57. Ke1 {[%emt 0:00:02]} h2 {[%emt 0:00:01]} 58. Kf2 {[%emt 0:00:03]} Kd3 {[%emt 0:00:04]} 59. Kg3 {[%emt 0:00:06]} h1=Q {[%emt 0:00:08]} 60. Kg4 {[%emt 0:00:10]} Qf3+ {[%emt 0:00:03]} 61. Kg5 {[%emt 0:00:07]} Qf5+ {[%emt 0:00:01]} 62. Kh4 {[%emt 0:00:12]} Qg6 {[%emt 0:00:03]} 63. Kh3 {[%emt 0:00:06]} Kxe3 {[%emt 0:00:03]} 64. Kh4 {[%emt 0:00:06]} Kf3 {[%emt 0:00:01]} 65. Kh3 {[%emt 0:00:04]} Qg3# {[%emt 0:00:03]} *